bitfinex/quotes_ETHUSD_20240710
["timestamp","ask_amount","ask_price","bid_price","bid_amount"]
[1720613573725,3.20859,3116.7,3115.9,0.71191407]
[1720613573890,3.20859,3116.7,3116.0,6.41839]
[1720613573891,6.41719,3116.7,3116.0,6.41839]
[1720613574291,6.41719,3116.7,3116.1,0.13711265]
[1720613574292,3.20858,3116.7,3116.1,0.13711265]
[1720613574610,3.20858,3116.7,3116.2,0.65555026]
[1720613574611,3.20864,3116.6,3116.2,0.65555026]
[1720613574994,3.20864,3116.6,3116.3,0.13707047]
[1720613575514,3.20864,3116.6,3116.4,0.13706277]
[1720613576018,3.20864,3116.6,3116.2,0.65555026]
[1720613576212,3.20864,3116.6,3116.5,0.13705508]
[1720613576418,3.20864,3116.6,3116.1,1.188]
[1720613576635,3.20864,3116.6,3116.5,0.13700638]
[1720613576807,3.20864,3116.6,3116.1,1.188]
[1720613577197,3.20864,3116.6,3116.2,0.13702948]
[1720613577863,3.20852,3116.7,3116.2,0.13702948]
[1720613578430,3.20838,3116.9,3116.3,3.20888]
[1720613578788,3.20838,3116.9,3116.4,0.13701408]
[1720613579625,6.41678,3116.9,3116.4,0.13701408]
[1720613580734,3.20841,3116.8,3116.4,0.13701408]
[1720613581416,3.20841,3116.8,3116.2,3.20901]
[1720613581595,3.20841,3116.8,3116.5,0.13686761]
[1720613581914,3.20841,3116.8,3116.6,0.13685992]
[1720613582444,3.20841,3116.8,3116.3,6.67212]
[1720613582607,3.20841,3116.8,3116.7,0.13685222]
[1720613582793,3.20841,3116.8,3116.3,6.67212]
[1720613582999,3.20841,3116.8,3116.7,0.13685222]
[1720613583493,3.20841,3116.8,3116.3,6.67212]
[1720613583699,3.20841,3116.8,3116.4,0.13687531]
[1720613585665,3.20863,3116.6,3116.4,0.13687531]
[1720613585864,3.20844,3116.8,3116.4,0.13687531]
[1720613586029,3.20844,3116.8,3116.4,0.50293284]
[1720613586212,6.41695,3116.8,3116.4,0.50293284]
[1720613586549,3.20844,3116.8,3116.4,0.50293284]
[1720613587255,3.20852,3116.7,3116.4,0.50293284]
[1720613589220,3.20852,3116.7,3116.4,0.13687531]
[1720613589736,3.20839,3116.9,3116.4,0.13687531]
[1720613589938,3.20844,3116.8,3116.4,0.13687531]
[1720613590859,6.41693,3116.8,3116.4,0.13687531]
[1720613591159,3.20844,3116.8,3116.4,0.13687531]
[1720613592947,3.20852,3116.7,3116.2,5.54471]
[1720613593134,3.20837,3116.9,3116.5,0.13682864]
[1720613593339,3.20837,3116.9,3116.4,0.56815853]
[1720613593646,3.20837,3116.9,3116.5,0.13682864]
[1720613594459,3.20814,3117.1,3116.5,0.13682864]
[1720613594675,3.20814,3117.1,3116.5,1.83501836]
[1720613596453,6.41631,3117.1,3116.5,1.83501836]
[1720613596670,3.20814,3117.1,3116.5,1.83501836]
[1720613596978,3.20832,3116.9,3116.5,0.13682864]
[1720613597534,3.20832,3116.9,3116.3,3.2089]
[1720613597848,6.4167,3116.9,3116.3,3.2089]
[1720613598033,3.20832,3116.9,3116.3,3.2089]
[1720613598236,3.20832,3116.9,3116.4,0.13683634]
[1720613599777,6.4167,3116.9,3116.4,0.13683634]
[1720613600273,3.20872,3116.5,3116.4,0.13683634]
[1720613600648,3.20872,3116.5,3116.1,7.47]
[1720613600649,3.20903,3116.2,3116.1,7.47]
[1720613600859,6.41806,3116.2,3116.1,7.47]
[1720613603166,3.20947,3115.8,3115.6,7.47]
[1720613603355,1.188,3116.4,3115.6,0.8658]
[1720613603356,3.20888,3116.4,3115.6,0.8658]
[1720613603551,3.20888,3116.4,3115.7,1.32034647]
[1720613603862,3.20904,3116.2,3115.7,1.32034647]
[1720613604239,3.20865,3116.6,3115.9,1.188]
[1720613604451,2.3138,3117.1,3116.3,1.188]
[1720613604452,3.20837,3116.9,3116.3,1.188]
[1720613604659,3.20852,3116.7,3116.3,1.188]
[1720613604884,3.20872,3116.5,3116.4,0.13254337]
[1720613605098,3.20852,3116.7,3115.8,5.55518]
[1720613605099,3.20884,3116.4,3115.9,1.188]
[1720613605241,3.20884,3116.4,3116.0,0.1325693]
[1720613605754,3.20884,3116.4,3116.1,0.1325616]
[1720613606255,3.20884,3116.4,3116.2,0.1325539]
[1720613606553,3.20884,3116.4,3115.9,1.188]
[1720613606768,3.20884,3116.4,3116.3,0.1325462]
[1720613607098,3.20846,3116.8,3116.3,1.3205462]
[1720613607867,6.41696,3116.8,3116.3,1.3205462]
[1720613608172,3.20846,3116.8,3116.3,1.3205462]
[1720613608602,3.20846,3116.8,3116.3,0.1325462]
[1720613609084,3.20846,3116.8,3116.2,3.20902]
[1720613609290,3.20846,3116.8,3116.3,0.46670282]
[1720613610494,6.41695,3116.8,3116.3,0.46670282]
[1720613611555,6.41695,3116.8,3116.3,0.1325462]
[1720613611783,3.20793,3117.3,3116.3,0.1325462]
[1720613611973,3.20875,3116.5,3116.0,7.47]
[1720613612264,3.20888,3116.4,3115.8,3.20942]
[1720613612452,3.20888,3116.4,3115.9,1.067942]
[1720613612650,3.20875,3116.5,3115.9,1.200519]
[1720613613089,3.20875,3116.5,3115.9,4.409859]
[1720613613297,5.2874,3117.2,3116.1,3.20907]
[1720613613469,3.20853,3116.7,3116.2,0.1325539]
[1720613614857,3.20887,3116.4,3116.2,0.1325539]
[1720613615057,3.20887,3116.4,3115.9,5.69754]
[1720613615368,3.20887,3116.4,3116.0,0.1325693]
[1720613615749,3.20887,3116.4,3115.9,2.4882]
[1720613615978,3.20887,3116.4,3116.1,0.1325616]
[1720613616183,3.20887,3116.4,3116.0,0.1325693]
[1720613616363,0.84953,3117.1,3115.9,4.125908]
[1720613616364,3.20807,3117.2,3116.2,3.3415039]
[1720613616574,3.20816,3117.1,3116.4,3.20881]
[1720613616777,3.20816,3117.1,3116.5,2.622881]
[1720613616979,3.20816,3117.1,3116.5,2.75517562]
[1720613617371,3.20822,3117.0,3116.5,2.75517562]
[1720613618297,3.20807,3117.2,3116.6,3.20862]
[1720613618495,3.20807,3117.2,3116.7,0.13218187]
[1720613621096,6.41616,3117.2,3116.7,0.13218187]
[1720613621394,3.20807,3117.2,3116.7,0.13218187]
[1720613622825,6.41614,3117.2,3116.7,0.13218187]
[1720613624932,3.20811,3117.1,3116.7,0.13218187]
[1720613625117,3.20829,3117.0,3116.4,7.47]
[1720613625318,3.20829,3117.0,3116.5,0.13219483]
[1720613628559,3.20832,3116.9,3116.5,0.13219483]
[1720613629618,3.20848,3116.8,3116.5,0.13219483]
[1720613629938,3.20862,3116.6,3116.5,0.13219483]
[1720613631046,6.41698,3116.8,3116.5,0.13219483]
[1720613631228,2.3608,3117.0,3116.5,0.13219483]
[1720613631229,3.20854,3116.7,3116.5,0.13219483]
[1720613631768,3.20862,3116.6,3116.5,0.13219483]
[1720613631917,3.850336,3116.6,3116.5,0.13219483]
[1720613632314,3.20862,3116.6,3116.5,0.13219483]
[1720613633244,3.20875,3116.5,3116.0,3.20923]
[1720613635254,3.20875,3116.5,3115.9,11.0135]
[1720613635465,3.20875,3116.5,3116.1,1.188]
[1720613636856,6.41754,3116.5,3116.1,1.188]
[1720613639062,6.41754,3116.5,3115.9,14.22278]
[1720613639265,6.41754,3116.5,3115.9,15.966006]
[1720613639631,3.20884,3116.4,3115.9,12.756726]
[1720613640252,3.20895,3116.3,3115.9,2.931226]
[1720613640618,3.20895,3116.3,3115.9,1.188]
[1720613643106,6.41798,3116.3,3115.9,1.188]
[1720613645369,3.20903,3116.2,3115.9,1.188]
[1720613645770,3.20935,3115.9,3115.6,9.8597]
[1720613646169,3.20953,3115.8,3115.6,7.47]
[1720613646407,3.20955,3115.7,3115.3,2.39686432]
[1720613648313,3.20955,3115.7,3115.4,0.12364007]
[1720613648512,6.4195,3115.5,3115.4,0.12364007]
[1720613648697,9.62988,3115.3,3115.2,0.6672981]
[1720613649019,10.81788,3115.3,3115.2,0.6672981]
[1720613650687,9.62988,3115.3,3115.2,0.6672981]
[1720613650988,10.913843,3115.3,3115.2,0.6672981]
[1720613652187,13.341443,3115.3,3115.2,0.6672981]
[1720613652584,16.551403,3115.3,3115.2,0.6672981]
[1720613653339,13.341443,3115.3,3115.2,0.6672981]
[1720613655043,3.21076,3114.6,3114.2,7.47]
[1720613655250,3.21076,3114.6,3114.1,2.4705]
[1720613655251,3.21045,3114.9,3114.3,0.99405]
[1720613655514,3.21045,3114.9,3114.3,0.11103413]
[1720613655753,6.4209,3114.9,3114.3,0.11103413]
[1720613656054,3.21045,3114.9,3114.3,0.11103413]
[1720613656550,3.21045,3114.9,3114.4,0.11102643]
[1720613656712,3.21048,3114.8,3114.1,8.89274]
[1720613656917,3.21048,3114.8,3114.2,1.00031584]
[1720613658252,3.21048,3114.8,3114.2,4.21139584]
[1720613661725,3.21048,3114.8,3114.3,3.21099]
[1720613661950,3.21048,3114.8,3114.4,0.11067643]
[1720613662158,3.21023,3115.1,3114.4,0.11067643]
[1720613663560,3.21039,3114.9,3114.4,0.53177047]
[1720613665373,3.21023,3115.1,3114.5,2.3225]
[1720613665669,3.20981,3115.5,3114.6,3.32159705]
[1720613666085,3.21002,3115.3,3114.6,3.32159705]
[1720613666734,3.21006,3115.2,3114.6,3.32159705]
[1720613667428,3.21002,3115.3,3114.6,3.32159705]
[1720613668455,3.21002,3115.3,3114.7,3.21057]
[1720613668651,3.20961,3115.7,3114.9,2.4507]
[1720613668983,5.46015,3116.2,3115.0,3.32111623]
[1720613669288,3.20956,3115.7,3115.1,3.21016]
[1720613669574,6.4192,3115.7,3115.2,0.44295142]
[1720613669789,6.4192,3115.7,3115.2,0.1108448]
[1720613670146,3.20987,3115.4,3114.9,2.4507]
[1720613670373,3.20987,3115.4,3115.0,0.11086021]
[1720613670585,3.21034,3115.0,3114.3,5.54362]
[1720613670742,7.61012,3115.2,3115.1,0.11077016]
[1720613671098,7.61012,3115.2,3114.3,3.15170595]
[1720613671099,3.21044,3114.9,3114.3,5.54369]
[1720613671457,6.42088,3114.9,3114.4,0.1071417]
[1720613671982,3.21044,3114.9,3114.4,0.1071417]
[1720613672141,3.21044,3114.9,3114.4,0.79122487]
[1720613672347,6.42088,3114.9,3114.4,0.79122487]
[1720613673890,2.3144,3115.6,3114.5,1.19]
[1720613674044,3.21004,3115.3,3114.6,3.21063]
[1720613674248,6.42009,3115.3,3114.7,1.19]
[1720613674654,6.42009,3115.3,3114.8,0.10723925]
[1720613675179,6.42009,3115.3,3114.9,0.10723155]
[1720613675344,6.42009,3115.3,3114.7,1.19]
[1720613675544,3.21004,3115.3,3114.8,2.43603925]
[1720613675774,6.42009,3115.3,3114.8,2.43603925]
[1720613675941,3.21004,3115.3,3114.8,2.43603925]
[1720613676589,3.21007,3115.2,3114.8,2.43603925]
[1720613680227,3.21007,3115.2,3114.8,0.10723925]
[1720613680599,3.21007,3115.2,3114.7,1.19]
[1720613680812,3.21007,3115.2,3114.9,0.10716615]
[1720613681001,3.21007,3115.2,3114.8,0.10717385]
[1720613681188,3.21007,3115.2,3115.0,0.10715845]
[1720613681389,3.21007,3115.2,3114.9,0.10716615]
[1720613681611,3.21007,3115.2,3115.1,0.10715074]
[1720613681789,3.21007,3115.2,3115.0,0.10715845]
[1720613681989,3.21007,3115.2,3114.6,3.21066]
[1720613682485,3.21007,3115.2,3114.7,0.10718156]
[1720613683089,3.21007,3115.2,3114.5,6.83418]
[1720613683661,3.21018,3115.1,3114.6,0.10718926]
[1720613685108,3.21038,3114.9,3114.6,0.10718926]
[1720613690052,6.42044,3115.1,3114.6,0.10718926]
[1720613690249,3.21018,3115.1,3114.6,0.10718926]
[1720613691684,3.21006,3115.2,3114.7,1.19]
[1720613692172,3.21006,3115.2,3114.8,0.10719081]
[1720613692372,3.21006,3115.2,3114.7,1.19]
[1720613692667,3.21006,3115.2,3114.8,0.10719081]
[1720613693046,3.21006,3115.2,3114.7,4.40057]
[1720613693251,3.21006,3115.2,3114.9,0.1071831]
[1720613693438,3.21006,3115.2,3114.8,0.10719081]
[1720613693643,3.21006,3115.2,3114.7,4.40057]
[1720613693644,3.21006,3115.2,3115.0,0.1071754]
[1720613693950,3.21006,3115.2,3115.1,0.10716769]
[1720613694276,3.21006,3115.2,3114.5,3.6234]
[1720613694436,3.21006,3115.2,3115.1,0.10716769]
[1720613694640,3.21006,3115.2,3114.5,6.83413]
[1720613694842,3.21006,3115.2,3115.1,0.10716769]
[1720613695073,3.21006,3115.2,3114.5,6.83413]
[1720613695536,3.21006,3115.2,3114.6,0.10720622]
[1720613696239,3.21018,3115.1,3114.6,0.10720622]
[1720613698849,3.21018,3115.1,3114.6,3.31788622]
[1720613699650,3.21018,3115.1,3114.7,1.19]
[1720613699971,3.21018,3115.1,3114.8,0.10720051]
[1720613700280,3.21018,3115.1,3114.7,1.19]
[1720613700477,3.21018,3115.1,3114.9,0.1071928]
[1720613700784,3.21018,3115.1,3115.0,0.1071851]
[1720613701086,3.21018,3115.1,3114.7,1.19]
[1720613701283,3.21018,3115.1,3115.0,0.1071851]
[1720613701445,3.21018,3115.1,3114.7,1.19]
[1720613701642,3.21018,3115.1,3115.0,0.1071851]
[1720613701883,3.21011,3115.2,3114.7,1.19]
[1720613702084,3.21011,3115.2,3115.0,0.1071851]
[1720613702295,3.21011,3115.2,3114.7,1.19]
[1720613702463,3.21011,3115.2,3115.1,0.10717739]
[1720613702664,3.21011,3115.2,3114.7,1.19]
[1720613702858,3.21011,3115.2,3115.1,0.10717739]
[1720613703064,3.21017,3115.1,3114.7,1.19]
[1720613703305,0.06438826,3115.0,3114.4,7.47]
[1720613703471,3.21078,3114.5,3114.4,7.47]
[1720613703794,3.21069,3114.6,3114.0,4.4013]
[1720613703997,3.21055,3114.8,3114.2,1.19]
[1720613704300,3.21059,3114.7,3114.4,1.19]
[1720613705178,6.4215,3114.6,3114.2,1.19]
[1720613705390,3.21079,3114.5,3114.2,1.19]
[1720613705721,3.211,3114.3,3113.9,7.47]
[1720613706707,5.58825,3114.6,3114.0,1.19]
[1720613707006,3.21089,3114.4,3114.2,1.19]
[1720613708420,3.21089,3114.4,3114.3,0.09696582]
[1720613708627,3.21089,3114.4,3114.2,1.19]
[1720613708818,3.21089,3114.4,3114.3,0.09696582]
[1720613709206,3.21089,3114.4,3114.2,1.19]
[1720613709526,3.21089,3114.4,3114.3,0.09696582]
[1720613709829,3.21075,3114.6,3114.2,1.19]
[1720613710033,3.21075,3114.6,3114.3,0.09696582]
[1720613710544,3.21058,3114.7,3114.4,1.19]
[1720613710829,3.21054,3114.8,3114.4,1.28695812]
[1720613711399,3.21017,3115.1,3114.6,1.19]
[1720613711826,3.21017,3115.1,3114.7,0.09700768]
[1720613712130,3.20963,3115.7,3114.7,0.09700768]
[1720613712131,3.20945,3115.8,3115.1,2.3766]
[1720613712333,3.20945,3115.8,3115.4,1.19]
[1720613712536,3.20955,3115.7,3115.4,1.19]
[1720613712829,3.20955,3115.7,3115.2,0.09693282]
[1720613712830,3.85144,3115.7,3115.5,0.09690971]
[1720613713047,3.2094,3115.9,3115.5,0.09690971]
[1720613713200,3.2094,3115.9,3115.2,4.39998]
[1720613713405,3.20945,3115.8,3115.2,4.39998]
[1720613713708,5.55468,3115.6,3115.3,0.09692512]
[1720613713895,0.555468,3115.5,3114.9,3.21036]
[1720613714099,3.20975,3115.5,3115.4,0.0967648]
[1720613714299,6.41924,3115.7,3115.0,4.40023]
[1720613714610,3.20962,3115.7,3115.0,4.40023]
[1720613714805,3.20939,3115.9,3115.2,1.19]
[1720613715012,3.20939,3115.9,3115.3,0.09671196]
[1720613715396,3.4567,3116.2,3115.4,1.19]
[1720613715397,2.2667,3116.2,3115.4,1.19]
[1720613715640,3.20899,3116.3,3115.6,3.20964]
[1720613715865,3.20899,3116.3,3115.6,4.39964]
[1720613716005,3.20899,3116.3,3115.7,0.09667873]
[1720613716209,4.096335,3116.3,3115.7,0.09667873]
[1720613717712,3.20904,3116.2,3115.7,0.09667873]
[1720613718247,4.096335,3116.3,3115.7,0.09667873]
[1720613718248,3.20919,3116.1,3115.7,0.09667873]
[1720613718422,3.20919,3116.1,3115.5,3.20972]
[1720613718626,3.20919,3116.1,3115.8,0.09667103]
[1720613718953,3.20919,3116.1,3115.5,3.20972]
[1720613719316,3.20919,3116.1,3115.6,0.09668644]
[1720613720153,3.20919,3116.1,3115.6,1.28668644]
[1720613721749,0.7305525,3116.1,3115.6,0.09668644]
[1720613721955,1.19,3116.4,3115.6,0.09668644]
[1720613721956,7.6091,3115.7,3115.6,0.09668644]
[1720613722265,3.20998,3115.3,3114.9,2.39686432]
[1720613722415,3.21027,3115.0,3114.4,7.47]
[1720613722618,3.21023,3115.1,3114.4,9.966711]
[1720613722822,5.4638,3115.3,3114.4,9.966711]
[1720613723135,8.67383,3115.3,3114.6,1.19]
[1720613723346,3.21009,3115.2,3114.6,1.19]
[1720613723544,3.20979,3115.5,3114.9,1.19]
[1720613723718,3.20979,3115.5,3114.8,3.21039]
[1720613723719,0.06438826,3115.4,3114.7,0.0963707]
[1720613723922,3.21017,3115.1,3115.0,0.09648804]
[1720613724154,3.21017,3115.1,3114.5,4.40072]
[1720613724617,0.06438826,3115.0,3114.5,1.19]
[1720613724819,0.06438826,3115.0,3114.6,0.09654308]
[1720613725463,3.21017,3115.1,3114.6,0.09654308]
[1720613727725,0.06438826,3115.4,3114.7,2.4898]
[1720613728034,2.3367,3115.3,3114.8,0.09652766]
[1720613728234,2.3367,3115.3,3114.4,7.47]
[1720613728235,0.30449709,3115.2,3114.4,7.47]
[1720613728443,0.30449709,3115.2,3114.9,0.09656841]
[1720613728648,0.30449709,3115.2,3114.1,2.2761]
[1720613728971,0.30449709,3115.2,3114.0,7.47]
[1720613728972,6.42133,3114.7,3114.0,11.8713]
[1720613729332,3.2108,3114.5,3114.0,7.47]
[1720613729676,3.211,3114.3,3113.9,3.58686432]
[1720613729880,6.42208,3114.3,3113.9,3.58686432]
[1720613730082,3.2111,3114.2,3113.9,3.58686432]
[1720613730585,3.21121,3114.1,3113.9,2.39686432]
[1720613731180,3.21104,3114.3,3113.9,2.39686432]
[1720613731387,3.21119,3114.2,3113.9,2.39686432]
[1720613732083,3.21104,3114.3,3113.9,2.39686432]
[1720613732084,3.2112,3114.1,3113.9,2.39686432]
[1720613732582,6.42212,3114.3,3113.9,2.39686432]
[1720613733174,3.2111,3114.2,3113.9,2.39686432]
[1720613733866,3.21105,3114.3,3113.9,2.39686432]
[1720613734038,6.4217,3114.5,3113.9,2.39686432]
[1720613735740,3.2109,3114.4,3113.9,2.39686432]
[1720613737283,3.2111,3114.2,3113.9,2.39686432]
[1720613737455,6.42227,3114.2,3113.9,2.39686432]
[1720613737776,3.21102,3114.3,3113.9,2.39686432]
[1720613738276,3.21102,3114.3,3114.0,0.14361568]
[1720613739366,3.21111,3114.2,3114.0,0.14361568]
[1720613740774,6.42197,3114.4,3114.0,0.14361568]
[1720613741073,3.21098,3114.4,3114.0,0.14361568]
[1720613741372,6.42194,3114.4,3114.0,0.14361568]
[1720613741934,3.21096,3114.4,3114.0,0.14361568]
[1720613742135,3.21101,3114.3,3114.0,0.14361568]
[1720613743073,3.2112,3114.1,3114.0,0.14361568]
[1720613749711,3.21075,3114.6,3114.0,0.14361568]
[1720613750003,3.21094,3114.4,3114.0,0.14361568]
[1720613752207,6.42191,3114.4,3114.0,0.14361568]
[1720613752418,3.2112,3114.1,3114.0,0.14361568]
[1720613753282,6.4224,3114.1,3114.0,0.14361568]
[1720613761035,8.746,3114.1,3114.0,0.14361568]
[1720613761330,3.21161,3113.7,3113.6,7.47]
[1720613761627,3.21161,3113.7,3113.2,3.4432]
[1720613761786,6.42329,3113.7,3113.2,5.495962]
[1720613761985,0.06438826,3113.7,3113.2,5.495962]
[1720613762187,6.42424,3113.2,3113.1,3.19]
[1720613762419,3.21252,3112.9,3112.7,9.86686432]
[1720613762739,3.21254,3112.8,3112.7,2.39686432]
[1720613764003,6.42508,3112.8,3112.7,2.39686432]
[1720613764211,3.21276,3112.6,3112.2,20.82]
[1720613764415,3.21276,3112.6,3112.2,23.453541]
[1720613766239,3.21219,3113.2,3112.4,4.40295]
[1720613766438,3.21193,3113.4,3112.7,1.19]
[1720613766604,3.21203,3113.3,3112.7,3.21262]
[1720613766810,3.21203,3113.3,3112.8,0.321262]
[1720613767043,3.21203,3113.3,3112.7,3.21262]
[1720613767712,3.21239,3113.0,3112.3,5.62797]
[1720613768330,3.21263,3112.8,3112.4,0.12961832]
[1720613768542,3.21261,3112.8,3112.4,0.12961832]
[1720613768713,3.2126,3112.8,3112.4,0.12961832]
[1720613769046,5.66369,3113.6,3112.5,3.21276]
[1720613769248,3.21179,3113.6,3112.7,3.21255]
[1720613769549,3.21179,3113.6,3112.8,3.3420815]
[1720613769842,3.21179,3113.6,3112.9,3.86780315]
[1720613770015,3.21228,3113.1,3112.8,0.1295815]
[1720613770211,3.21228,3113.1,3113.0,0.12956309]
[1720613770426,3.21228,3113.1,3112.9,0.12957229]
[1720613770744,3.21228,3113.1,3113.0,0.12956309]
[1720613770920,3.21228,3113.1,3112.5,5.6907]
[1720613771127,3.21228,3113.1,3113.0,0.12956309]
[1720613771314,3.21228,3113.1,3112.5,5.6907]
[1720613771514,6.42456,3113.1,3113.0,0.12956309]
[1720613771697,3.21267,3112.7,3112.1,3.2132]
[1720613771908,3.21267,3112.7,3112.2,0.32132]
[1720613772116,3.21267,3112.7,3112.2,0.45112161]
[1720613772546,3.21247,3112.9,3112.2,0.45112161]
[1720613772720,2.4973,3113.4,3112.2,0.45112161]
[1720613772921,3.21224,3113.1,3112.6,2.3317]
[1720613773240,6.42453,3113.1,3112.6,2.3317]
[1720613773535,6.42453,3113.1,3112.7,0.12975557]
[1720613773536,3.21234,3113.0,3112.7,0.12975557]
[1720613773953,3.21223,3113.1,3112.7,0.12975557]
[1720613774104,3.21197,3113.4,3112.7,3.90977413]
[1720613774524,6.06881,3114.5,3112.7,0.12975557]
[1720613774525,3.21244,3112.9,3112.7,0.12975557]
[1720613774742,3.21234,3113.0,3112.7,0.12975557]
[1720613775239,2.858,3114.1,3112.7,0.12975557]
[1720613775240,3.21209,3113.3,3112.7,0.12975557]
[1720613776041,3.21219,3113.2,3112.7,0.12975557]
[1720613777341,6.42441,3113.2,3112.7,0.12975557]
[1720613777651,3.21224,3113.1,3112.7,0.12975557]
[1720613777811,6.42508,3112.8,3112.7,0.12975557]
[1720613778141,0.06438826,3113.0,3111.8,5.49208]
[1720613778142,3.21297,3112.4,3111.8,5.49208]
[1720613778906,3.21307,3112.3,3111.8,2.2786]
[1720613780029,3.2128,3112.6,3111.9,3.21346]
[1720613780239,2.3538,3113.2,3112.0,3.21335]
[1720613780240,3.2126,3112.8,3112.0,3.21335]
[1720613780553,3.21272,3112.7,3112.0,3.21335]
[1720613780753,3.21275,3112.6,3112.0,3.21335]
[1720613783032,3.21295,3112.4,3111.8,9.81587643]
[1720613783512,3.21286,3112.5,3111.9,0.13002815]
[1720613784851,3.21286,3112.5,3111.9,3.34346815]
[1720613785055,6.42556,3112.6,3111.9,4.57774204]
[1720613785245,3.21285,3112.5,3111.9,4.57774204]
[1720613785449,3.21285,3112.5,3112.0,1.0069812]
[1720613785640,3.21285,3112.5,3112.1,0.13003157]
[1720613785840,3.21285,3112.5,3111.9,3.21344]
[1720613786062,3.21285,3112.5,3112.0,0.13004078]
[1720613786684,3.21326,3112.1,3112.0,0.13004078]
[1720613786978,6.42652,3112.1,3112.0,0.13004078]
[1720613787141,3.21357,3111.8,3111.7,2.39686432]
[1720613787555,3.21357,3111.8,3111.7,2.52693273]
[1720613787762,8.86274,3111.8,3111.7,0.13006841]
[1720613788074,8.86274,3111.8,3110.8,8.70764]
[1720613788075,3.21395,3111.5,3110.9,3.2145]
[1720613788276,6.4279,3111.5,3111.0,0.13013291]
[1720613788507,3.21395,3111.5,3111.0,0.13013291]
[1720613788837,0.64909083,3112.1,3111.1,3.21428]
[1720613789045,5.69592,3112.3,3111.2,3.34428448]
[1720613789242,3.21321,3112.2,3111.5,3.21387]
[1720613789468,3.21335,3112.1,3111.6,0.13007763]
[1720613789670,3.21335,3112.1,3111.5,2.4285]
[1720613789856,3.21335,3112.1,3111.6,0.13007763]
[1720613790454,3.21311,3112.3,3111.6,0.13007763]
[1720613790672,3.21311,3112.3,3111.6,3.34378763]
[1720613791042,3.21311,3112.3,3111.6,6.55749763]
[1720613791300,3.21311,3112.3,3111.6,3.34378763]
[1720613791448,3.21309,3112.3,3111.7,0.60151376]
[1720613791649,3.21309,3112.3,3111.8,0.1300592]
[1720613791849,3.21309,3112.3,3111.7,3.81518376]
[1720613792082,3.21309,3112.3,3111.8,0.13013685]
[1720613792290,3.21319,3112.2,3111.7,3.21367]
[1720613792580,3.21291,3112.5,3111.9,0.13012764]
[1720613792779,3.21291,3112.5,3111.8,3.34364685]
[1720613793081,3.21291,3112.5,3111.9,0.13012521]
[1720613793257,6.42584,3112.5,3111.9,0.13012521]
[1720613793596,3.21291,3112.5,3111.9,0.13012521]
[1720613794281,3.21291,3112.5,3111.9,3.34356521]
[1720613794874,6.42585,3112.5,3111.9,0.13012521]
[1720613797270,3.21336,3112.0,3111.9,0.13012521]
[1720613797482,3.21306,3112.3,3111.6,3.2137]
[1720613797666,3.21301,3112.4,3111.9,0.13019801]
[1720613797873,3.21306,3112.3,3111.7,3.21364]
[1720613798197,3.21306,3112.3,3112.0,0.1301888]
[1720613798396,3.21306,3112.3,3111.7,3.21364]
[1720613798578,3.21306,3112.3,3112.1,0.13017959]
[1720613798781,3.21285,3112.5,3111.8,3.21351]
[1720613798997,3.21285,3112.5,3112.2,0.13017038]
[1720613799168,3.21285,3112.5,3111.8,3.21351]
[1720613799373,6.42578,3112.5,3112.3,0.13016117]
[1720613799594,6.42578,3112.5,3111.8,3.856219]
[1720613799595,6.42578,3112.5,3111.8,3.21351]
[1720613799798,6.42578,3112.5,3112.4,0.13015196]
[1720613800104,3.21298,3112.4,3111.8,3.21351]
[1720613800702,2.4007,3112.8,3111.5,3.21381]
[1720613800703,3.2132,3112.2,3111.5,3.21381]
[1720613801010,2.4007,3112.8,3111.6,3.21369]
[1720613801011,3.21306,3112.3,3111.6,3.21369]
[1720613801605,6.4262,3112.3,3111.6,3.21369]
[1720613803264,3.21306,3112.3,3111.6,3.21369]
[1720613804278,3.21306,3112.3,3111.5,4.02324743]
[1720613804279,3.21306,3112.3,3111.7,3.21365]
[1720613804480,3.21291,3112.5,3111.8,3.534905]
[1720613804678,3.21295,3112.4,3111.8,3.534905]
[1720613806007,3.21295,3112.4,3111.5,4.02325743]
[1720613806008,3.21318,3112.2,3111.6,3.21372]
[1720613806211,3.2133,3112.1,3111.3,5.61088432]
[1720613806520,3.21351,3111.9,3111.3,5.61088432]
[1720613807408,6.42705,3111.9,3111.3,5.61088432]
[1720613808182,6.42706,3111.9,3111.3,5.61088432]
[1720613808384,3.21351,3111.9,3111.3,5.61088432]
[1720613808579,6.42704,3111.9,3111.3,6.34199424]
[1720613808909,3.21351,3111.9,3111.3,6.34199424]
[1720613809776,3.21351,3111.9,3111.3,9.55602424]
[1720613809988,3.21332,3112.1,3111.3,9.55602424]
[1720613810204,3.21337,3112.0,3111.3,9.55602424]
[1720613810533,3.21332,3112.1,3111.5,3.21384]
[1720613810689,3.21307,3112.3,3111.6,5.70422]
[1720613811822,3.2129,3112.5,3111.8,3.21355]
[1720613812027,3.21304,3112.4,3111.8,3.21355]
[1720613813332,3.21304,3112.4,3111.9,0.13030481]
[1720613815120,3.21285,3112.5,3111.9,0.13030481]
[1720613815319,3.21279,3112.6,3111.9,0.78604129]
[1720613815520,3.21255,3112.8,3112.1,3.21317]
[1720613815893,3.21255,3112.8,3112.2,0.13027718]
[1720613816800,3.21255,3112.8,3112.2,3.34339718]
[1720613817013,3.21255,3112.8,3112.2,4.2307329]
[1720613818218,3.21255,3112.8,3112.2,3.34339718]
[1720613819037,3.21255,3112.8,3112.2,6.55647718]
[1720613821510,3.21255,3112.8,3112.2,3.34335718]
[1720613821916,5.54344826,3112.7,3112.2,0.13027718]
[1720613822142,3.21283,3112.6,3112.2,0.13027718]
[1720613822313,4.08845783,3112.6,3111.9,3.21341]
[1720613822515,4.08845783,3112.6,3112.3,0.13006413]
[1720613822821,3.21287,3112.5,3111.9,3.21341]
[1720613823007,3.21287,3112.5,3112.4,0.13005492]